bitfinex-derivatives/quotes_SOLF0:USTF0_20250808
["timestamp","ask_amount","ask_price","bid_price","bid_amount"]
[1754672949843,12.78514738,176.23,176.22,150.63808018]
[1754672951544,3.25,176.23,176.22,150.63808018]
[1754672952041,3.23,176.26,176.22,145.01378018]
[1754672952242,3.23,176.26,176.25,4.06378018]
[1754672952442,3.23,176.26,176.25,144.94378018]
[1754672952845,3.23,176.26,176.25,140.88]
[1754672953147,3.23,176.26,176.25,121.00614936]
[1754672956447,3.23,176.26,176.25,116.94236918]
[1754672956659,3.23,176.26,176.25,121.00614936]
[1754672957961,18.39825751,176.28,176.25,121.00614936]
[1754672958162,3.23,176.28,176.27,4.06378018]
[1754672958463,3.23,176.28,176.27,0.51760968]
[1754672962258,3.23,176.28,176.27,6.19020968]
[1754672962649,3.23,176.28,176.27,0.51760968]
[1754672963754,11.3376,176.4,176.3,7.29378018]
[1754672963755,12.72585751,176.34,176.3,7.29378018]
[1754672963960,12.72585751,176.34,176.32,4.06378018]
[1754672964158,18.39635751,176.34,176.32,0.68991862]
[1754672964355,5.6705,176.34,176.32,0.68991862]
[1754672964758,5.6707,176.33,176.31,0.04340594]
[1754672964959,5.6707,176.33,176.31,4.10718612]
[1754672965259,18.39645751,176.34,176.31,4.10718612]
[1754672965461,5.6706,176.34,176.31,4.10718612]
[1754672965653,3.23,176.33,176.31,4.10718612]
[1754672966050,3.23,176.32,176.31,4.10718612]
[1754672966249,3.23,176.33,176.31,4.10718612]
[1754672966453,3.23,176.33,176.32,7.29378018]
[1754672966953,12.72585751,176.38,176.33,3.23]
[1754672967159,18.39515751,176.38,176.37,7.29378018]
[1754672967456,12.72585751,176.39,176.37,7.29378018]
[1754672967857,12.72585751,176.39,176.38,3.23]
[1754672968055,12.72585751,176.4,176.38,3.23]
[1754672968255,12.72585751,176.4,176.39,4.06378018]
[1754672968456,12.72585751,176.42,176.39,7.29378018]
[1754672968955,3.23,176.4,176.39,7.29378018]
[1754672969159,3.23,176.4,176.39,7.33707477]
[1754672969556,8.8985,176.4,176.39,0.04329459]
[1754672971363,8.8985,176.4,176.39,3.27329459]
[1754672972763,8.8985,176.4,176.39,0.04329459]
[1754672976166,8.8985,176.4,176.39,3.07329459]
[1754672976362,15.86227222,176.48,176.39,3.07329459]
[1754672976363,5.6682,176.41,176.39,3.07329459]
[1754672976665,5.6682,176.41,176.4,7.09378018]
[1754672977360,8.6482,176.41,176.4,7.09378018]
[1754672979168,12.72585751,176.48,176.41,3.03]
[1754672979365,2.98,176.47,176.44,4.06378018]
[1754672979557,5.6669,176.45,176.44,4.06378018]
[1754672979758,8.6469,176.45,176.44,7.13103323]
[1754672980155,5.6669,176.45,176.44,7.13103323]
[1754672980355,8.6469,176.45,176.44,7.13103323]
[1754672981161,8.6469,176.45,176.44,4.10103323]
[1754672982270,8.6469,176.45,176.44,0.03725305]
[1754672984668,5.6685,176.4,176.39,7.09378018]
[1754672984871,2.98,176.45,176.28,381.16]
[1754672984872,2.98,176.39,176.38,3.03]
[1754672985173,2.98,176.39,176.37,7.09378018]
[1754672985369,5.669,176.39,176.37,7.09378018]
[1754672985671,2.98,176.38,176.37,3.03]
[1754672985968,2.98,176.38,176.37,8.6994]
[1754672986375,2.98,176.38,176.37,3.03]
[1754672986572,8.6491,176.38,176.37,3.03]
[1754672986768,2.98,176.37,176.36,3.03]
[1754672987072,4.06378018,176.44,176.34,3.03]
[1754672987073,2.98,176.35,176.34,3.03]
[1754672987575,5.6699,176.36,176.34,3.03]
[1754672987767,8.6499,176.36,176.35,3.03]
[1754672987970,5.6699,176.36,176.35,3.03]
[1754672988370,5.6696,176.37,176.35,3.03]
[1754672988569,8.6496,176.37,176.36,3.03]
[1754672988777,2.98,176.39,176.36,3.03]
[1754672989072,16.78963769,176.47,176.37,4.06378018]
[1754672989280,2.98,176.46,176.4,3.03]
[1754672989778,4.06378018,176.47,176.39,4.06378018]
[1754672989977,2.98,176.46,176.41,3.03]
[1754672990175,11.3304,176.51,176.41,7.09378018]
[1754672990176,16.78963769,176.49,176.41,7.09378018]
[1754672990377,4.06378018,176.49,176.42,3.03]
[1754672990775,5.6671,176.45,176.42,3.03]
[1754672991070,8.6471,176.45,176.42,3.03]
[1754672992269,2.98,176.45,176.42,8.6978]
[1754672992476,5.6666,176.46,176.43,3.03]
[1754672992676,2.98,176.46,176.43,3.03]
[1754672993076,5.6666,176.46,176.42,3.03]
[1754672993276,4.06378018,176.5,176.36,140.72]
[1754672993277,2.98,176.47,176.44,3.03]
[1754672993873,8.646,176.48,176.44,3.03]
[1754672994081,2.98,176.47,176.45,4.06378018]
[1754672994286,2.98,176.47,176.46,3.03]
[1754672995789,8.6462,176.47,176.46,3.03]
[1754672995984,8.6462,176.47,176.45,4.06378018]
[1754672996185,2.98,176.46,176.45,7.09378018]
[1754672996792,2.98,176.48,176.41,3.03]
[1754672997393,2.98,176.5,176.43,3.03]
[1754672998192,5.6667,176.46,176.43,3.03]
[1754672998387,8.6467,176.46,176.43,3.03]
[1754672998592,2.98,176.46,176.43,3.03]
[1754672999092,2.98,176.45,176.43,3.03]
[1754672999294,2.98,176.45,176.44,3.03]
[1754673000186,8.6469,176.45,176.44,3.03]
[1754673000689,2.98,176.48,176.41,3.03]
[1754673000992,4.06378018,176.47,176.41,3.03]
[1754673001195,2.98,176.46,176.41,3.03]
[1754673001500,2.98,176.46,176.42,3.03]
[1754673002794,8.6478,176.43,176.42,3.03]
[1754673002996,2.98,176.42,176.4,3.03]
[1754673003196,2.98,176.42,176.41,3.03]
[1754673003399,8.6478,176.42,176.41,3.03]
[1754673004993,5.6678,176.42,176.41,3.03]
[1754673005194,2.98,176.5,176.42,3.03]
[1754673005394,2.98,176.49,176.46,3.03]
[1754673005594,5.6665,176.46,176.45,4.06378018]
[1754673006197,5.6664,176.47,176.46,3.14]
[1754673007497,5.666,176.48,176.46,3.14]
[1754673007698,3.16,176.49,176.46,3.14]
[1754673008097,5.6662,176.47,176.46,3.14]
[1754673008292,5.6662,176.47,176.46,7.20378018]
[1754673008492,5.6662,176.47,176.46,4.06378018]
[1754673008700,5.6662,176.47,176.46,7.20378018]
[1754673009400,8.8262,176.47,176.46,7.20378018]
[1754673010505,3.16,176.44,176.43,7.20378018]
[1754673011099,3.16,176.42,176.41,7.20378018]
[1754673011298,3.16,176.42,176.41,3.14]
[1754673011494,8.8278,176.42,176.41,3.14]
[1754673012598,3.16,176.46,176.42,3.14]
[1754673012798,3.16,176.46,176.45,7.20378018]
[1754673014304,5.666,176.48,176.45,7.20378018]
[1754673014499,3.16,176.48,176.46,3.14]
[1754673014704,3.16,176.48,176.47,3.14]
[1754673015210,3.16,176.48,176.47,7.20378018]
[1754673020112,5.6658,176.49,176.48,3.14]
[1754673020309,8.8258,176.49,176.48,3.14]
[1754673022014,8.8259,176.48,176.47,7.20378018]
[1754673023710,8.8259,176.48,176.47,3.14]
[1754673023909,15.88585751,176.49,176.44,7.20378018]
[1754673024109,3.16,176.48,176.44,7.20378018]
[1754673024316,5.6669,176.45,176.44,7.20378018]
[1754673024511,3.16,176.45,176.42,7.20378018]
[1754673024712,3.16,176.45,176.42,4.06378018]
[1754673024913,8.8274,176.44,176.43,3.14]
[1754673026912,3.16,176.43,176.4,7.20378018]
[1754673027116,3.16,176.43,176.4,3.14]
[1754673027413,8.8285,176.4,176.39,4.06378018]
[1754673027621,3.16,176.39,176.38,3.14]
[1754673028015,12.72585751,176.45,176.38,3.14]
[1754673028215,3.16,176.44,176.38,3.14]
[1754673029319,3.16,176.39,176.37,4.06378018]
[1754673029623,3.16,176.39,176.37,7.20378018]
[1754673029812,4.06378018,176.44,176.37,7.20378018]
[1754673030014,3.16,176.38,176.37,7.20378018]
[1754673030716,3.16,176.38,176.36,380.82]
[1754673030920,3.16,176.41,176.37,3.14]
[1754673031119,5.6691,176.38,176.37,3.14]
[1754673031319,8.8291,176.38,176.37,3.14]
[1754673031514,3.16,176.38,176.37,3.14]
[1754673031715,5.669,176.39,176.37,3.14]
[1754673032017,5.669,176.39,176.38,3.14]
[1754673032722,5.6685,176.4,176.38,3.14]
[1754673033220,5.6688,176.39,176.38,3.14]
[1754673033421,8.8288,176.39,176.38,3.14]
[1754673033815,5.6688,176.39,176.38,3.14]
[1754673034016,5.6685,176.4,176.38,3.14]
[1754673034422,5.6682,176.41,176.38,3.14]
[1754673034619,3.16,176.42,176.38,3.14]
[1754673034817,3.16,176.41,176.38,3.14]
[1754673035016,5.6685,176.4,176.38,3.14]
[1754673035617,3.16,176.43,176.39,7.20378018]
[1754673035822,33.67449148,176.53,176.42,3.14]
[1754673035823,12.72585751,176.45,176.42,3.14]
[1754673036027,3.16,176.45,176.44,3.25]
[1754673036218,8.657,176.45,176.44,0.51157305]
[1754673036419,2.99,176.45,176.44,0.51157305]
[1754673036625,2.99,176.45,176.44,4.06378018]
[1754673037124,2.99,176.46,176.44,4.06378018]
[1754673037315,2.99,176.45,176.44,4.06378018]
[1754673038019,8.6566,176.46,176.44,4.06378018]
[1754673038220,2.99,176.45,176.44,7.31378018]
[1754673039025,8.6568,176.45,176.44,7.31378018]
[1754673040424,2.99,176.45,176.44,7.31378018]
[1754673041128,8.6568,176.45,176.44,7.31378018]
[1754673041827,2.99,176.45,176.44,7.31378018]
[1754673042623,8.6568,176.45,176.44,7.31378018]
[1754673043222,12.72585751,176.48,176.41,4.06378018]
[1754673043427,12.72585751,176.47,176.41,4.06378018]
[1754673043728,5.6677,176.43,176.41,4.06378018]
[1754673043920,12.72585751,176.47,176.41,7.31378018]
[1754673044126,2.99,176.43,176.42,3.25]
[1754673046725,8.6575,176.43,176.42,3.25]
[1754673046926,2.99,176.46,176.41,4.06378018]
[1754673047126,15.71585751,176.45,176.41,4.06378018]
[1754673047325,2.99,176.44,176.41,4.06378018]
[1754673047525,8.6578,176.42,176.41,4.06378018]
[1754673048330,2.99,176.4,176.39,7.31378018]
[1754673049126,2.99,176.41,176.39,4.06378018]
[1754673049329,2.99,176.41,176.4,3.25]
[1754673051732,2.99,176.43,176.4,3.25]
[1754673051928,2.99,176.43,176.42,3.25]
[1754673052125,2.99,176.45,176.42,3.25]
[1754673052330,2.99,176.44,176.43,7.31378018]
[1754673052833,2.99,176.44,176.43,4.06378018]
[1754673053033,2.99,176.44,176.4,3.25]
[1754673053234,2.99,176.44,176.41,4.06378018]
[1754673053434,2.99,176.42,176.41,4.06378018]
[1754673053733,2.99,176.42,176.41,7.31378018]
[1754673054635,2.99,176.42,176.41,4.06378018]
[1754673055630,5.6673,176.44,176.41,7.31378018]
[1754673055829,2.99,176.43,176.42,3.25]
[1754673056636,12.72585751,176.46,176.43,3.25]
[1754673056836,2.99,176.45,176.44,7.31378018]
[1754673057135,8.6568,176.45,176.44,7.31378018]
[1754673057532,2.99,176.44,176.43,4.06378018]
[1754673058745,8.6572,176.44,176.43,4.06378018]
[1754673058947,2.99,176.44,176.43,4.06378018]
[1754673059944,8.6566,176.46,176.43,4.06378018]
[1754673060145,2.99,176.45,176.44,1.69]
[1754673060350,2.99,176.44,176.43,5.75378018]
[1754673061043,2.99,176.46,176.44,1.69]
[1754673061346,2.99,176.46,176.45,5.75378018]
[1754673062442,2.99,176.46,176.45,4.06378018]
[1754673062642,2.99,176.46,176.43,1.69]
[1754673062844,5.6664,176.47,176.45,4.06378018]
[1754673063037,2.99,176.46,176.45,4.06378018]
[1754673065150,8.6565,176.46,176.45,4.06378018]
[1754673065455,8.6565,176.46,176.43,1.69]
[1754673065456,2.99,176.46,176.43,4.06378018]
[1754673066149,5.667,176.45,176.43,4.06378018]
[1754673066354,2.98,176.44,176.43,4.06378018]
[1754673066646,2.98,176.44,176.34,595.11802084]
[1754673066647,2.98,176.44,176.35,4.06378018]
[1754673066947,12.70830946,176.4,176.34,4.06378018]
[1754673067244,2.98,176.39,176.34,5.75378018]
[1754673067947,2.98,176.39,176.36,4.06378018]
[1754673069247,5.6692,176.38,176.36,4.06378018]
[1754673069448,2.98,176.37,176.36,4.06378018]
[1754673070754,2.98,176.37,176.36,5.75378018]
[1754673070949,2.98,176.4,176.36,5.75378018]
[1754673071149,2.98,176.4,176.37,1.69]
[1754673071348,2.98,176.39,176.37,1.69]
[1754673071550,2.98,176.38,176.37,1.69]
[1754673072847,2.98,176.38,176.36,9.73328018]
[1754673072848,2.98,176.39,176.38,1.69]
[1754673073050,2.98,176.39,176.36,5.75378018]
[1754673073356,2.98,176.41,176.38,5.75378018]
[1754673073943,2.98,176.41,176.38,11.42288018]
[1754673074149,2.98,176.41,176.38,7.3591]
[1754673074344,2.98,176.41,176.39,1.69]
[1754673074547,2.98,176.4,176.39,1.69]
[1754673074747,2.98,176.42,176.39,5.6684]
[1754673074944,2.98,176.41,176.39,1.69]
[1754673075351,2.98,176.41,176.38,144.50378018]
[1754673075352,2.98,176.43,176.41,5.6679]
[1754673075652,12.70830946,176.46,176.42,5.75378018]
[1754673075956,2.98,176.45,176.44,5.75378018]
[1754673076655,2.98,176.45,176.44,4.06378018]
[1754673077356,2.98,176.45,176.42,4.06378018]
[1754673077757,5.667,176.45,176.42,4.06378018]
[1754673078151,2.98,176.43,176.42,4.06378018]
[1754673079258,2.98,176.43,176.42,5.75378018]
[1754673080657,2.98,176.43,176.42,4.06378018]
[1754673084161,2.98,176.43,176.41,4.06378018]
[1754673084549,5.6681,176.41,176.4,140.38]
[1754673084759,8.6481,176.41,176.4,144.44378018]
[1754673085460,2.98,176.41,176.4,144.44378018]
[1754673085657,12.70830946,176.46,176.4,150.10378018]
[1754673085864,2.98,176.46,176.43,4.06378018]
[1754673086159,2.98,176.44,176.43,4.06378018]
[1754673086557,2.98,176.43,176.41,7.3579]
[1754673086862,2.98,176.43,176.42,4.06378018]
[1754673087860,12.70830946,176.48,176.42,11.42158018]
[1754673088064,2.98,176.44,176.42,11.42158018]
[1754673088265,2.98,176.47,176.42,4.06378018]
[1754673088458,2.98,176.47,176.43,1.69]
[1754673088657,2.98,176.47,176.41,1.69]
[1754673089054,2.98,176.45,176.42,4.06378018]
[1754673090565,2.98,176.45,176.42,9.73158018]
[1754673090761,2.98,176.45,176.42,11.42158018]
[1754673092061,5.6663,176.47,176.43,7.3574]
[1754673092356,2.98,176.46,176.44,4.06378018]
[1754673093063,2.98,176.46,176.45,1.68]
[1754673093262,2.98,176.45,176.44,4.06378018]
[1754673095666,2.98,176.45,176.4,235.0]
[1754673095866,12.70830946,176.47,176.41,146.08378018]
[1754673096177,2.99,176.45,176.44,1.68]
[1754673097275,2.99,176.48,176.43,5.74378018]
[1754673097469,2.99,176.44,176.43,4.06378018]
[1754673098679,2.99,176.43,176.42,1.68]
[1754673098871,8.6564,176.47,176.42,11.41158018]
[1754673099073,2.99,176.46,176.43,1.68]
[1754673099272,2.99,176.46,176.44,4.06378018]
[1754673099473,5.6665,176.46,176.44,4.06378018]
[1754673099669,2.99,176.45,176.44,4.06378018]
[1754673100377,2.99,176.45,176.41,147.688]
[1754673100572,2.99,176.45,176.43,4.06378018]
[1754673100880,8.6569,176.45,176.43,4.06378018]
[1754673101172,2.99,176.44,176.43,4.06378018]
[1754673101974,2.99,176.44,176.41,147.688]
[1754673101975,8.6571,176.44,176.41,140.34]
[1754673102178,2.99,176.46,176.41,144.40378018]
[1754673102476,2.99,176.43,176.41,144.40378018]
[1754673102672,2.99,176.42,176.41,140.34]
[1754673102873,2.99,176.42,176.41,144.40378018]
[1754673103478,2.99,176.42,176.41,151.75188018]
[1754673104379,2.99,176.42,176.41,146.08378018]
[1754673105679,2.99,176.42,176.41,140.34]
[1754673105880,2.99,176.42,176.41,142.02]
[1754673106080,12.70830946,176.48,176.41,140.34]
[1754673106381,2.99,176.43,176.42,5.74378018]
[1754673106577,2.99,176.43,176.41,140.34]
[1754673106773,2.99,176.46,176.42,4.06378018]
[1754673106975,2.99,176.46,176.42,5.74378018]
[1754673107176,5.667,176.45,176.42,5.74378018]
[1754673107472,2.99,176.43,176.42,5.74378018]
[1754673107779,2.99,176.43,176.41,140.34]
[1754673107975,2.99,176.43,176.42,4.06378018]
[1754673109776,5.6666,176.46,176.42,11.41158018]
[1754673109984,2.99,176.45,176.44,4.06378018]
[1754673110175,2.99,176.45,176.44,146.02378018]
[1754673110376,2.99,176.45,176.44,140.28]
[1754673112684,2.99,176.45,176.44,144.34378018]
[1754673113479,2.99,176.45,176.44,140.28]
[1754673113678,2.99,176.45,176.44,144.34378018]
[1754673113877,2.99,176.45,176.44,146.02378018]
[1754673114082,2.99,176.45,176.44,144.34378018]
[1754673114883,2.99,176.45,176.44,140.28]
[1754673115085,2.99,176.45,176.44,144.34378018]
[1754673116679,2.99,176.45,176.44,150.01088018]
[1754673117476,2.99,176.45,176.44,151.69088018]
[1754673117679,2.99,176.45,176.44,146.02378018]
[1754673117877,2.99,176.45,176.44,140.28]
[1754673118079,2.99,176.45,176.44,144.34378018]
[1754673118282,15.86227222,176.53,176.44,144.34378018]
[1754673118283,12.70830946,176.48,176.44,144.34378018]
[1754673118485,2.99,176.47,176.46,4.06378018]
[1754673118681,2.99,176.47,176.46,145.98378018]
[1754673118886,2.99,176.47,176.46,151.65028018]
[1754673119187,9.54144417,176.48,176.47,1.68]
[1754673119378,2.99,176.52,176.47,4.06378018]
[1754673119582,12.70830946,176.52,176.48,140.24]
[1754673119976,2.99,176.51,176.48,141.92]
[1754673120280,2.99,176.51,176.49,4.06378018]
[1754673120483,2.99,176.49,176.48,140.24]
[1754673121087,8.6555,176.49,176.48,140.24]
[1754673121286,2.99,176.49,176.48,140.24]
[1754673122179,2.99,176.49,176.48,141.92]
[1754673123388,18.37260946,176.53,176.48,140.24]
[1754673123686,12.70830946,176.53,176.51,4.06378018]
[1754673123887,18.37290946,176.53,176.51,4.06378018]
[1754673124188,5.6646,176.53,176.51,4.06378018]
[1754673124389,2.99,176.52,176.51,4.06378018]
[1754673124689,8.6546,176.52,176.5,4.06378018]
[1754673124881,2.99,176.51,176.5,4.06378018]
[1754673125282,8.6549,176.51,176.5,4.06378018]
[1754673125488,2.99,176.51,176.48,144.30378018]
[1754673125687,2.99,176.5,176.48,144.30378018]
[1754673125883,2.99,176.5,176.48,145.98378018]
[1754673126783,3.19,176.54,176.48,145.98378018]
[1754673127087,3.19,176.53,176.5,4.06378018]
[1754673127488,3.19,176.53,176.48,141.92]
[1754673127791,3.19,176.54,176.51,4.06378018]
[1754673127989,3.19,176.55,176.51,4.06378018]
[1754673128189,3.19,176.55,176.52,1.68]
[1754673128492,3.19,176.53,176.52,1.68]
[1754673128788,3.19,176.52,176.51,5.74378018]
[1754673129086,5.6638,176.55,176.51,5.74378018]
[1754673129284,3.19,176.53,176.51,5.74378018]
[1754673129483,15.86227222,176.61,176.51,5.74378018]
[1754673129484,3.19,176.57,176.55,5.6636]
[1754673129685,3.19,176.57,176.56,5.74378018]
[1754673130187,3.19,176.57,176.54,140.18]
[1754673130386,3.19,176.57,176.56,4.06378018]
[1754673130785,8.8531,176.57,176.56,4.06378018]
[1754673131188,5.6636,176.55,176.54,4.06378018]
[1754673131387,8.8536,176.55,176.54,4.06378018]
[1754673131785,8.8543,176.53,176.52,140.16]
[1754673131982,8.8543,176.53,176.4,235.0]
[1754673131983,3.19,176.53,176.46,382.42]
[1754673132186,3.19,176.53,176.47,140.16]
[1754673132386,3.19,176.53,176.47,144.22378018]
[1754673132895,3.19,176.5,176.47,151.56988018]
[1754673133088,3.19,176.5,176.48,1.68]
[1754673133488,3.19,176.49,176.48,1.68]
[1754673133892,3.19,176.49,176.47,149.88988018]
[1754673134092,3.19,176.49,176.48,5.6659]
[1754673134287,3.19,176.49,176.47,144.22378018]
[1754673134590,3.19,176.49,176.47,145.90378018]
[1754673134791,3.19,176.49,176.48,1.68]
[1754673135292,3.19,176.49,176.47,145.8259]
[1754673135596,12.70830946,176.55,176.47,145.90378018]
[1754673135597,3.19,176.48,176.47,145.90378018]
[1754673135892,5.6649,176.51,176.47,144.22378018]
[1754673136093,3.19,176.5,176.47,144.22378018]
[1754673136491,3.19,176.52,176.49,4.06378018]
[1754673136691,3.19,176.52,176.49,5.74378018]
[1754673136992,5.6646,176.52,176.49,4.06378018]
[1754673137287,3.19,176.5,176.49,4.06378018]
[1754673137490,5.6644,176.53,176.49,11.40928018]
[1754673137696,3.19,176.51,176.5,1.68]
[1754673137897,3.19,176.51,176.49,9.72928018]
[1754673138198,3.19,176.51,176.49,11.40928018]
[1754673139998,3.19,176.53,176.51,1.68]
[1754673140295,33.66659148,176.66,176.54,1.68]
[1754673140296,3.19,176.56,176.54,1.68]
[1754673140503,3.19,176.56,176.55,4.06378018]
[1754673140892,3.19,176.56,176.55,5.74378018]
[1754673141093,3.19,176.59,176.55,11.40708018]
[1754673141294,3.19,176.59,176.56,144.20378018]
[1754673142406,3.19,176.59,176.56,149.86708018]
[1754673143201,3.19,176.59,176.56,145.8033]
[1754673143402,3.19,176.59,176.57,4.06378018]
[1754673147005,3.19,176.59,176.56,145.8032]
[1754673147300,3.19,176.59,176.57,4.06378018]
[1754673147806,8.8523,176.59,176.57,4.06378018]
[1754673148106,3.19,176.58,176.57,4.06378018]
[1754673148600,12.70830946,176.62,176.56,140.14]
[1754673148802,12.70830946,176.62,176.57,4.06378018]
[1754673149100,5.6624,176.59,176.57,4.06378018]
[1754673149303,3.19,176.58,176.56,140.14]
[1754673150503,3.19,176.57,176.56,140.14]
[1754673150699,3.19,176.61,176.56,141.82]
[1754673150905,3.19,176.59,176.58,5.74378018]
[1754673151507,3.19,176.63,176.58,4.06378018]
[1754673151708,3.19,176.63,176.6,4.06378018]
[1754673152001,3.19,176.61,176.6,4.06378018]
[1754673152202,15.89830946,176.64,176.6,144.14378018]
[1754673152405,3.19,176.63,176.6,140.08]
[1754673152604,3.19,176.63,176.62,5.74378018]
[1754673152908,3.19,176.65,176.63,1.68]
[1754673153100,3.19,176.65,176.64,4.06378018]
[1754673153300,3.19,176.65,176.64,5.74378018]
[1754673154310,3.19,176.67,176.64,4.06378018]
[1754673154807,3.19,176.66,176.64,4.06378018]
[1754673155305,3.19,176.69,176.64,4.06378018]
[1754673156312,5.6597,176.68,176.64,4.06378018]
[1754673156505,3.01,176.67,176.64,4.06378018]
[1754673157403,3.01,176.67,176.62,1.67]
[1754673157603,5.6606,176.65,176.64,4.06378018]
[1754673157909,3.01,176.65,176.64,4.06378018]
[1754673158506,8.6704,176.65,176.64,4.06378018]
[1754673159403,5.6604,176.65,176.64,4.06378018]
[1754673159611,3.01,176.63,176.61,1.67]
[1754673160305,3.01,176.62,176.61,1.67]
[1754673160710,3.01,176.62,176.61,5.73378018]
[1754673160908,8.671,176.64,176.61,4.06378018]
[1754673161107,8.671,176.64,176.63,5.73378018]
[1754673161305,3.01,176.64,176.63,5.73378018]
[1754673162210,3.01,176.64,176.63,4.06378018]
[1754673162416,3.01,176.64,176.63,5.73378018]
[1754673162605,3.01,176.64,176.63,4.06378018]
[1754673163211,3.01,176.63,176.6,140.08]
[1754673163415,3.01,176.63,176.62,4.06378018]
[1754673163813,8.6711,176.63,176.62,4.06378018]
[1754673164717,3.01,176.63,176.62,4.06378018]
[1754673165311,8.671,176.63,176.62,4.06378018]
[1754673165624,3.01,176.63,176.56,140.0]
[1754673165817,3.01,176.61,176.56,140.0]
[1754673166116,8.6732,176.57,176.56,140.0]
[1754673166317,3.01,176.57,176.56,140.0]
[1754673166622,8.673,176.57,176.56,140.0]
[1754673168624,5.6637,176.55,176.53,4.06378018]
[1754673168925,3.01,176.54,176.53,140.0]
[1754673170424,8.6739,176.54,176.53,140.0]
[1754673171224,3.01,176.54,176.47,5.74378018]
[1754673171420,3.01,176.54,176.48,140.0]
[1754673171820,8.6755,176.49,176.48,140.0]
[1754673172026,3.01,176.49,176.48,140.0]
[1754673173033,3.01,176.51,176.49,1.68]
[1754673173526,4.06378018,176.56,176.49,4.06378018]
[1754673173734,3.01,176.52,176.48,140.0]
[1754673173922,3.01,176.54,176.5,4.06378018]
[1754673174123,8.674,176.54,176.52,1.68]
[1754673174518,8.674,176.54,176.52,145.74378018]
[1754673175021,8.6737,176.55,176.53,1.68]
[1754673175825,5.6637,176.55,176.53,1.68]
[1754673176026,3.01,176.53,176.52,144.06378018]
[1754673176428,5.6637,176.55,176.52,145.74378018]
[1754673176627,3.01,176.54,176.52,145.74378018]
[1754673177132,3.01,176.53,176.52,145.74378018]
[1754673177434,3.01,176.56,176.52,145.74378018]
[1754673177933,5.6637,176.55,176.52,145.74378018]
[1754673178135,15.71830946,176.6,176.52,145.74378018]
[1754673178324,12.70830946,176.6,176.52,145.74378018]
[1754673178634,3.01,176.56,176.53,1.68]
[1754673179334,16.77208964,176.61,176.52,144.06378018]
[1754673179534,12.70830946,176.6,176.52,144.06378018]
[1754673179731,3.01,176.59,176.52,144.06378018]
[1754673179930,3.01,176.55,176.52,151.40828018]
[1754673180433,8.6737,176.55,176.52,144.06378018]
[1754673180629,3.01,176.54,176.52,144.06378018]
[1754673180934,5.6637,176.55,176.52,144.06378018]
[1754673181135,3.01,176.53,176.52,144.06378018]
[1754673181333,3.01,176.53,176.52,140.0]
[1754673181734,8.6742,176.53,176.52,140.0]
[1754673182128,3.01,176.53,176.52,140.0]
[1754673184628,3.01,176.55,176.52,141.68]
[1754673184832,3.01,176.58,176.52,141.68]
[1754673185540,3.01,176.58,176.52,144.06378018]
[1754673186340,5.6642,176.54,176.52,144.06378018]
[1754673186541,3.01,176.53,176.52,144.06378018]
[1754673186742,3.01,176.53,176.52,140.0]
[1754673187742,3.01,176.53,176.52,141.68]
[1754673188843,16.77208964,176.6,176.52,141.68]